fUSD/lending_fUSD_20260505
["ID","MTS","AMOUNT","RATE_DAILY","PERIOD"]
[421589183,1777938651000,-151.0,0.00020265,2]
[421589182,1777938651000,-160.0,0.0002023,2]
[421589184,1777938651000,-151.0,0.00020271,2]
[421589186,1777938651000,-151.0,0.00020282,2]
[421589185,1777938651000,-151.0,0.00020271,2]
[421589194,1777938651000,-502.66117919,0.00020371,2]
[421589187,1777938651000,-580.68109134,0.000203,2]
[421589191,1777938651000,-200.0,0.00020334,2]
[421589192,1777938651000,-817.5551945,0.00020371,2]
[421589188,1777938651000,-4545.99,0.00020306,2]
[421589234,1777938651000,-478.68,0.00020984,2]
[421589201,1777938651000,-400.0,0.00020409,2]
[421589199,1777938651000,-400.0,0.00020409,2]
[421589200,1777938651000,-400.0,0.00020409,2]
[421589206,1777938651000,-441.0,0.00020409,2]
[421589189,1777938651000,-510.32,0.00020306,2]
[421589198,1777938651000,-400.0,0.00020409,2]
[421589203,1777938651000,-400.0,0.00020409,2]
[421589197,1777938651000,-442.3,0.00020381,2]
[421589204,1777938651000,-400.0,0.00020409,2]
[421589195,1777938651000,-1116.96454094,0.00020371,2]
[421589202,1777938651000,-400.0,0.00020409,2]
[421589196,1777938651000,-1000.65411463,0.00020371,2]
[421589190,1777938651000,-560.04496895,0.00020312,2]
[421589205,1777938651000,-400.0,0.00020409,2]
[421589276,1777938652000,-300.0,0.00021136,2]
[421589281,1777938652000,-166.0,0.00021148,2]
[421589283,1777938652000,-848.81013408,0.0002123,2]
[421589277,1777938652000,-300.0,0.00021136,2]
[421589280,1777938652000,-422.0,0.00021136,2]
[421589274,1777938652000,-300.0,0.00021136,2]
[421589275,1777938652000,-300.0,0.00021136,2]
[421589286,1777938652000,-200.0,0.00021259,2]
[421589285,1777938652000,-200.0,0.00021259,2]
[421589273,1777938652000,-300.0,0.00021136,2]
[421589284,1777938652000,-200.0,0.00021259,2]
[421589279,1777938652000,-300.0,0.00021136,2]
[421589282,1777938652000,-506.39,0.000212,2]
[421589278,1777938652000,-300.0,0.00021136,2]
[421589293,1777938652000,-1351.0,0.00021318,2]
[421589290,1777938652000,-200.0,0.00021259,2]
[421589288,1777938652000,-200.0,0.00021259,2]
[421589291,1777938652000,-338.0,0.00021259,2]
[421589289,1777938652000,-200.0,0.00021259,2]
[421589298,1777938652000,-150.0,0.00021318,2]
[421589295,1777938652000,-3535.0,0.00021318,2]
[421589300,1777938652000,-6040.0,0.00021318,2]
[421589294,1777938652000,-624.0,0.00021318,2]
[421589292,1777938652000,-924.0,0.00021318,2]
[421589296,1777938652000,-1267.0,0.00021318,2]
[421589299,1777938652000,-417.0,0.00021318,2]
[421589297,1777938652000,-1219.0,0.00021318,2]
[421589302,1777938652000,-350.0,0.00021535,2]
[421589287,1777938652000,-200.0,0.00021259,2]
[421589269,1777938652000,-151.0,0.00021094,2]
[421589245,1777938652000,-183.68,0.00021002,2]
[421589264,1777938652000,-151.0,0.00021093,2]
[421589246,1777938652000,-639.3,0.00021002,2]
[421589313,1777938652000,-183.68,0.00021804,2]
[421589247,1777938652000,-639.3,0.00021011,2]
[421589242,1777938652000,-639.22,0.00021002,2]
[421589244,1777938652000,-183.68,0.00021002,2]
[421589241,1777938652000,-482.0,0.00021,2]
[421589240,1777938652000,-287.0,0.00021,2]
[421589243,1777938652000,-571.19,0.00021002,2]
[421589249,1777938652000,-183.68,0.00021011,2]
[421589259,1777938652000,-151.0,0.00021092,2]
[421589252,1777938652000,-155.086,0.0002103,2]
[421589251,1777938652000,-166.588,0.0002103,2]
[421589250,1777938652000,-150.0,0.0002103,2]
[421589248,1777938652000,-492.14,0.00021011,2]
[421589268,1777938652000,-151.0,0.00021094,2]
[421589253,1777938652000,-150.0,0.0002103,2]
[421589254,1777938652000,-150.0,0.0002103,2]
[421589258,1777938652000,-151.0,0.00021092,2]
[421589256,1777938652000,-152.1,0.00021092,2]
[421589257,1777938652000,-151.0,0.00021092,2]
[421589261,1777938652000,-151.0,0.00021092,2]
[421589262,1777938652000,-151.0,0.00021092,2]
[421589260,1777938652000,-151.0,0.00021092,2]
[421589270,1777938652000,-151.0,0.00021094,2]
[421589271,1777938652000,-580.68109134,0.000211,2]
[421589263,1777938652000,-151.0,0.00021093,2]
[421589266,1777938652000,-151.0,0.00021093,2]
[421589267,1777938652000,-153.06,0.00021094,2]
[421589265,1777938652000,-151.0,0.00021093,2]
[421589272,1777938652000,-300.0,0.00021136,2]
[421589255,1777938652000,-6453.0,0.0002108,2]
[421589304,1777938652000,-200.0,0.00021572,2]
[421589303,1777938652000,-200.0,0.00021572,2]
[421589314,1777938652000,-571.26,0.00021804,2]
[421589344,1777938652000,-1772.5,0.0002189,2]
[421589343,1777938652000,-1636.0,0.0002189,2]
[421589341,1777938652000,-569.01,0.00021833,2]
[421589348,1777938652000,-277.82,0.0002191,2]
[421589353,1777938652000,-151.0,0.00021912,2]
[421589350,1777938652000,-151.0,0.0002191,2]
[421589345,1777938652000,-800.40022708,0.0002189,2]
[421589352,1777938652000,-151.0,0.00021912,2]
[421589351,1777938652000,-151.0,0.00021912,2]
[421589346,1777938652000,-183.68,0.00021894,2]
[421589342,1777938652000,-568.94,0.00021833,2]
[421589349,1777938652000,-151.0,0.0002191,2]
[421589347,1777938652000,-1815.0,0.000219,5]
[421589354,1777938652000,-151.0,0.00021912,2]
[421589357,1777938652000,-151.0,0.00021912,2]
[421589356,1777938652000,-151.0,0.00021912,2]
[421589361,1777938652000,-151.0,0.00021917,2]
[421589359,1777938652000,-270.45,0.00021913,2]
[421589355,1777938652000,-151.0,0.00021912,2]
[421589363,1777938652000,-151.0,0.00021918,2]
[421589358,1777938652000,-151.0,0.00021913,2]
[421589364,1777938652000,-151.0,0.00021918,2]
[421589360,1777938652000,-151.0,0.00021917,2]
[421589365,1777938652000,-151.0,0.00021918,2]
[421589362,1777938652000,-5000.0,0.00021918,2]
[421589312,1777938652000,-639.3,0.00021804,2]
[421589369,1777938652000,-155.03,0.00021919,2]
[421589368,1777938652000,-151.0,0.00021918,2]
[421589367,1777938652000,-154.89,0.00021918,2]
[421589338,1777938652000,-182.32,0.00021833,2]
[421589336,1777938652000,-571.19,0.00021833,2]
[421589366,1777938652000,-151.0,0.00021918,2]
[421589337,1777938652000,-183.66,0.00021833,2]
[421589334,1777938652000,-571.26,0.00021824,2]
[421589301,1777938652000,-224.69712238,0.000215,2]
[421589310,1777938652000,-200.0,0.00021572,2]
[421589311,1777938652000,-232.0,0.00021572,2]
[421589305,1777938652000,-200.0,0.00021572,2]
[421589306,1777938652000,-200.0,0.00021572,2]
[421589308,1777938652000,-200.0,0.00021572,2]
[421589307,1777938652000,-200.0,0.00021572,2]
[421589315,1777938652000,-183.66,0.00021804,2]
[421589316,1777938652000,-478.68,0.00021804,2]
[421589326,1777938652000,-568.94,0.00021806,2]
[421589317,1777938652000,-639.3,0.00021806,2]
[421589319,1777938652000,-183.64,0.00021806,2]
[421589320,1777938652000,-571.26,0.00021806,2]
[421589328,1777938652000,-639.22,0.00021806,2]
[421589309,1777938652000,-200.0,0.00021572,2]
[421589327,1777938652000,-571.19,0.00021806,2]
[421589318,1777938652000,-478.68,0.00021806,2]
[421589333,1777938652000,-568.94,0.00021824,2]
[421589340,1777938652000,-639.13,0.00021833,2]
[421589329,1777938652000,-183.68,0.00021806,2]
[421589332,1777938652000,-393.19,0.00021824,2]
[421589331,1777938652000,-571.26,0.00021821,2]
[421589339,1777938652000,-393.21,0.00021833,2]
[421589325,1777938652000,-571.26,0.00021806,2]
[421589321,1777938652000,-477.79,0.00021806,2]
[421589330,1777938652000,-183.67,0.00021821,2]
[421589335,1777938652000,-183.68,0.00021824,2]
[421589323,1777938652000,-478.68,0.00021806,2]
[421589322,1777938652000,-478.62,0.00021806,2]
[421589324,1777938652000,-639.22,0.00021806,2]
[421589399,1777938653000,-560.23,0.00022466,2]
[421589412,1777938653000,-1595.59,0.00022562,2]
[421589396,1777938653000,-161.32447182,0.00022407,2]
[421589398,1777938653000,-547.55,0.00022466,2]
[421589402,1777938653000,-712.97,0.000225,2]
[421589417,1777938653000,-571.19,0.00022625,2]
[421589416,1777938653000,-392.27,0.00022625,2]
[421589418,1777938653000,-393.2,0.00022625,2]
[421589405,1777938653000,-169.93,0.00022517,2]
[421589413,1777938653000,-1986.0074906,0.000226,2]
[421589415,1777938653000,-478.68,0.00022625,2]
[421589406,1777938653000,-169.93,0.00022517,2]
[421589421,1777938653000,-396.01,0.00022625,2]
[421589409,1777938653000,-169.93,0.00022519,2]
[421589411,1777938653000,-1145.77,0.00022562,2]
[421589414,1777938653000,-639.3,0.00022625,2]
[421589410,1777938653000,-494.12565513,0.00022539,2]
[421589408,1777938653000,-169.93,0.00022519,2]
[421589419,1777938653000,-183.66,0.00022625,2]
[421589425,1777938653000,-393.19,0.00022628,2]
[421589422,1777938653000,-639.22,0.00022625,2]
[421589420,1777938653000,-571.19,0.00022625,2]
[421589423,1777938653000,-183.68,0.00022628,2]
[421589430,1777938653000,-569.01,0.00022628,2]
[421589400,1777938653000,-1040.05,0.00022466,2]
[421589407,1777938653000,-169.93,0.00022519,2]
[421589404,1777938653000,-169.93,0.00022515,2]
[421589382,1777938653000,-160.0,0.00022,2]
[421589403,1777938653000,-169.93,0.00022515,2]
[421589424,1777938653000,-639.22,0.00022628,2]
[421589377,1777938653000,-151.0,0.00021926,2]
[421589370,1777938653000,-151.0,0.00021919,2]
[421589371,1777938653000,-151.0,0.00021919,2]
[421589378,1777938653000,-151.0,0.00021926,2]
[421589374,1777938653000,-151.0,0.00021919,2]
[421589373,1777938653000,-151.0,0.00021919,2]
[421589375,1777938653000,-151.0,0.00021919,2]
[421589376,1777938653000,-151.0,0.00021919,2]
[421589380,1777938653000,-450.0,0.00022,2]
[421589390,1777938653000,-243.15927484,0.0002211,2]
[421589391,1777938653000,-2000.0,0.0002229,2]
[421589401,1777938653000,-350.0,0.00022479,2]
[421589379,1777938653000,-1500.0,0.00022,2]
[421589384,1777938653000,-203.0,0.00022,2]
[421589381,1777938653000,-11588.57384299,0.00022,4]
[421589385,1777938653000,-465.0,0.00022,2]
[421589389,1777938653000,-482.0,0.00022,2]
[421589386,1777938653000,-811.43309716,0.00022,2]
[421589388,1777938653000,-287.0,0.00022,2]
[421589387,1777938653000,-204.0,0.00022,2]
[421589392,1777938653000,-500.0,0.0002229,2]
[421589395,1777938653000,-151.0,0.00022359,2]
[421589394,1777938653000,-442.3,0.00022353,2]
[421589397,1777938653000,-161.32447182,0.00022407,2]
[421589393,1777938653000,-350.0,0.00022343,2]
[421589383,1777938653000,-177.0,0.00022,2]
[421589431,1777938653000,-393.24,0.00022628,2]
[421589372,1777938653000,-151.0,0.00021919,2]
[421589427,1777938653000,-637.66,0.00022628,2]
[421589460,1777938653000,-150.0,0.00022678,2]
[421589461,1777938653000,-150.0,0.00022678,2]
[421589464,1777938653000,-150.0,0.00022678,2]
[421589463,1777938653000,-150.0,0.00022678,2]
[421589462,1777938653000,-150.0,0.00022678,2]
[421589469,1777938653000,-568.94,0.00022716,2]
[421589465,1777938653000,-160.0,0.00022678,2]
[421589466,1777938653000,-220.18,0.000227,2]
[421589472,1777938653000,-639.3,0.00022716,2]
[421589471,1777938653000,-569.01,0.00022716,2]
[421589467,1777938653000,-529.669932,0.0002271,2]
[421589470,1777938653000,-639.22,0.00022716,2]
[421589459,1777938653000,-350.0,0.00022675,2]
[421589473,1777938653000,-478.68,0.00022716,2]
[421589475,1777938653000,-639.3,0.00022716,2]
[421589478,1777938653000,-478.62,0.00022718,2]
[421589476,1777938653000,-183.41,0.00022716,2]
[421589474,1777938653000,-568.94,0.00022716,2]
[421589481,1777938653000,-462.53,0.00022722,2]
[421589484,1777938653000,-151.0,0.00022723,2]
[421589483,1777938653000,-151.0,0.00022723,2]
[421589480,1777938653000,-646.24,0.00022718,2]
[421589482,1777938653000,-571.19,0.00022722,2]
[421589479,1777938653000,-183.66,0.00022718,2]
[421589485,1777938653000,-478.68,0.00022731,2]
[421589426,1777938653000,-183.24,0.00022628,2]
[421589477,1777938653000,-569.01,0.00022718,2]
[421589458,1777938653000,-571.19,0.00022655,2]
[421589468,1777938653000,-156.0,0.00022712,2]
[421589452,1777938653000,-478.68,0.00022655,2]
[421589457,1777938653000,-568.56,0.00022655,2]
[421589429,1777938653000,-393.24,0.00022628,2]
[421589428,1777938653000,-569.01,0.00022628,2]
[421589433,1777938653000,-573.21,0.00022628,2]
[421589441,1777938653000,-183.66,0.00022628,2]
[421589443,1777938653000,-639.22,0.00022643,2]
[421589442,1777938653000,-393.14,0.00022643,2]
[421589444,1777938653000,-478.62,0.00022643,2]
[421589434,1777938653000,-183.66,0.00022628,2]
[421589438,1777938653000,-566.29,0.00022628,2]
[421589435,1777938653000,-393.19,0.00022628,2]
[421589437,1777938653000,-639.3,0.00022628,2]
[421589436,1777938653000,-392.97,0.00022628,2]
[421589432,1777938653000,-571.19,0.00022628,2]
[421589453,1777938653000,-568.94,0.00022655,2]
[421589440,1777938653000,-392.74,0.00022628,2]
[421589455,1777938653000,-571.26,0.00022655,2]
[421589451,1777938653000,-569.01,0.00022655,2]
[421589454,1777938653000,-568.61,0.00022655,2]
[421589450,1777938653000,-571.19,0.00022655,2]
[421589447,1777938653000,-571.26,0.00022646,2]
[421589445,1777938653000,-569.01,0.00022643,2]
[421589448,1777938653000,-569.01,0.00022646,2]
[421589456,1777938653000,-393.24,0.00022655,2]
[421589446,1777938653000,-478.68,0.00022643,2]
[421589439,1777938653000,-478.68,0.00022628,2]
[421589449,1777938653000,-478.68,0.00022646,2]
[421589535,1777938654000,-250.0,0.0002283,2]
[421589528,1777938654000,-151.0,0.00022738,2]
[421589525,1777938654000,-151.62,0.00022738,2]
[421589536,1777938654000,-250.0,0.0002283,2]
[421589529,1777938654000,-151.0,0.00022738,2]
[421589526,1777938654000,-151.0,0.00022738,2]
[421589523,1777938654000,-154.19,0.00022738,2]
[421589513,1777938654000,-151.0,0.00022737,2]
[421589520,1777938654000,-151.0,0.00022738,2]
[421589519,1777938654000,-151.0,0.00022738,2]
[421589512,1777938654000,-151.0,0.00022737,2]
[421589530,1777938654000,-151.0,0.00022739,2]
[421589524,1777938654000,-189.18,0.00022738,2]
[421589531,1777938654000,-435.43,0.00022741,2]
[421589542,1777938654000,-500.0,0.00022973,2]
[421589533,1777938654000,-151.0,0.00022748,2]
[421589534,1777938654000,-151.0,0.00022748,2]
[421589532,1777938654000,-151.63,0.00022741,2]
[421589538,1777938654000,-383.0,0.0002283,2]
[421589548,1777938654000,-500.0,0.00022973,2]
[421589549,1777938654000,-500.0,0.00022973,2]
[421589537,1777938654000,-250.0,0.0002283,2]
[421589540,1777938654000,-6280.09770852,0.00022972,2]
[421589541,1777938654000,-162.53898942,0.00022973,2]
[421589539,1777938654000,-150.0,0.00022831,2]
[421589547,1777938654000,-500.0,0.00022973,2]
[421589546,1777938654000,-501.38845893,0.00022973,2]
[421589517,1777938654000,-478.62,0.00022738,2]
[421589527,1777938654000,-151.44,0.00022738,2]
[421589514,1777938654000,-151.0,0.00022737,2]
[421589487,1777938654000,-151.0,0.00022734,2]
[421589510,1777938654000,-151.0,0.00022736,2]
[421589495,1777938654000,-151.0,0.00022735,2]
[421589496,1777938654000,-151.0,0.00022735,2]
[421589544,1777938654000,-500.0,0.00022973,2]
[421589492,1777938654000,-151.0,0.00022735,2]
[421589490,1777938654000,-151.0,0.00022734,2]
[421589491,1777938654000,-151.0,0.00022734,2]
[421589493,1777938654000,-151.0,0.00022735,2]
[421589488,1777938654000,-151.0,0.00022734,2]
[421589494,1777938654000,-152.0,0.00022735,2]
[421589489,1777938654000,-151.0,0.00022734,2]
[421589486,1777938654000,-153.23,0.00022734,2]
[421589497,1777938654000,-151.0,0.00022735,2]
[421589508,1777938654000,-151.0,0.00022736,2]
[421589500,1777938654000,-151.0,0.00022736,2]
[421589499,1777938654000,-151.42,0.00022736,2]
[421589501,1777938654000,-151.0,0.00022736,2]
[421589498,1777938654000,-478.68,0.00022736,2]
[421589502,1777938654000,-151.0,0.00022736,2]
[421589509,1777938654000,-151.0,0.00022736,2]
[421589503,1777938654000,-151.78,0.00022736,2]
[421589504,1777938654000,-151.0,0.00022736,2]
[421589505,1777938654000,-151.0,0.00022736,2]
[421589507,1777938654000,-151.0,0.00022736,2]
[421589506,1777938654000,-151.0,0.00022736,2]
[421589511,1777938654000,-151.0,0.00022737,2]
[421589522,1777938654000,-151.0,0.00022738,2]
[421589521,1777938654000,-151.0,0.00022738,2]
[421589516,1777938654000,-151.0,0.00022738,2]
[421589515,1777938654000,-151.0,0.00022738,2]
[421589518,1777938654000,-151.0,0.00022738,2]
[421589545,1777938654000,-500.0,0.00022973,2]
[421589543,1777938654000,-500.0,0.00022973,2]
[421589550,1777938654000,-500.0,0.00022973,2]
[421589583,1777938654000,-1245.631853,0.00023,2]
[421589586,1777938654000,-194.100948,0.00023,2]
[421589582,1777938654000,-1397.662752,0.00023,2]
[421589589,1777938654000,-194.100948,0.00023,2]
[421589601,1777938654000,-180.048456,0.00023,2]
[421589590,1777938654000,-287.0,0.00023,2]
[421589588,1777938654000,-194.100948,0.00023,2]
[421589600,1777938654000,-151.0,0.00023,2]
[421589599,1777938654000,-151.0,0.00023,2]
[421589593,1777938654000,-151.0,0.00023,2]
[421589595,1777938654000,-151.0,0.00023,2]
[421589598,1777938654000,-151.0,0.00023,2]
[421589591,1777938654000,-151.0,0.00023,2]
[421589592,1777938654000,-151.0,0.00023,2]
[421589584,1777938654000,-1245.631853,0.00023,2]
[421589596,1777938654000,-151.0,0.00023,2]
[421589594,1777938654000,-151.0,0.00023,2]
[421589602,1777938654000,-482.0,0.00023,2]
[421589605,1777938654000,-180.048456,0.00023,2]
[421589606,1777938654000,-284.168815,0.00023,2]
[421589604,1777938654000,-180.048456,0.00023,2]
[421589610,1777938654000,-676.97163779,0.00023099,2]
[421589613,1777938654000,-881.0,0.00023188,2]
[421589607,1777938654000,-284.168815,0.00023,2]
[421589603,1777938654000,-180.048456,0.00023,2]
[421589611,1777938654000,-400.0,0.00023155,2]
[421589612,1777938654000,-360.0,0.00023155,2]
[421589551,1777938654000,-500.0,0.00022973,2]
[421589609,1777938654000,-284.168815,0.00023,2]
[421589614,1777938654000,-150.0,0.0002322,2]
[421589597,1777938654000,-151.0,0.00023,2]
[421589587,1777938654000,-194.100948,0.00023,2]
[421589608,1777938654000,-284.168815,0.00023,2]
[421589585,1777938654000,-1245.631853,0.00023,2]
[421589581,1777938654000,-1245.631853,0.00023,2]
[421589562,1777938654000,-151.0,0.00023,2]
[421589552,1777938654000,-4746.12386949,0.00023,2]
[421589553,1777938654000,-305025.93316622,0.00023,2]
[421589556,1777938654000,-224.496297,0.00023,2]
[421589559,1777938654000,-224.496297,0.00023,2]
[421589557,1777938654000,-224.496297,0.00023,2]
[421589555,1777938654000,-151.0,0.00023,2]
[421589554,1777938654000,-151.0,0.00023,2]
[421589558,1777938654000,-224.496297,0.00023,2]
[421589560,1777938654000,-151.0,0.00023,2]
[421589564,1777938654000,-291.604478,0.00023,2]
[421589563,1777938654000,-203.0,0.00023,2]
[421589574,1777938654000,-607.545318,0.00023,2]
[421589561,1777938654000,-177.0,0.00023,2]
[421589567,1777938654000,-291.604478,0.00023,2]
[421589580,1777938654000,-1397.662752,0.00023,2]
[421589578,1777938654000,-1397.662752,0.00023,2]
[421589577,1777938654000,-151.0,0.00023,2]
[421589579,1777938654000,-1397.662752,0.00023,2]
[421589575,1777938654000,-151.0,0.00023,2]
[421589573,1777938654000,-607.545318,0.00023,2]
[421589576,1777938654000,-151.0,0.00023,2]
[421589572,1777938654000,-607.545318,0.00023,2]
[421589570,1777938654000,-204.0,0.00023,2]
[421589569,1777938654000,-465.0,0.00023,2]
[421589571,1777938654000,-607.545318,0.00023,2]
[421589566,1777938654000,-291.604478,0.00023,2]
[421589565,1777938654000,-291.604478,0.00023,2]
[421589568,1777938654000,-151.0,0.00023,2]
[421589659,1777938655000,-1003.48747475,0.00023521,2]
[421589661,1777938655000,-1000.93431225,0.00023521,2]
[421589655,1777938655000,-219.56975509,0.00023521,2]
[421589654,1777938655000,-1001.10866992,0.00023521,2]
[421589653,1777938655000,-568.94,0.00023477,2]
[421589644,1777938655000,-393.2,0.00023465,2]
[421589658,1777938655000,-1007.72604448,0.00023521,2]
[421589652,1777938655000,-397.61,0.00023465,2]
[421589650,1777938655000,-478.62,0.00023465,2]
[421589645,1777938655000,-393.19,0.00023465,2]
[421589643,1777938655000,-393.02,0.00023465,2]
[421589651,1777938655000,-183.11,0.00023465,2]
[421589660,1777938655000,-1000.94736209,0.00023521,2]
[421589666,1777938655000,-478.68,0.00023538,2]
[421589657,1777938655000,-1000.0,0.00023521,2]
[421589663,1777938655000,-181.39,0.00023538,2]
[421589673,1777938655000,-475.83,0.00023538,2]
[421589665,1777938655000,-478.68,0.00023538,2]
[421589675,1777938655000,-478.62,0.00023539,2]
[421589662,1777938655000,-1107.66208192,0.00023521,2]
[421589674,1777938655000,-183.66,0.00023539,2]
[421589664,1777938655000,-639.3,0.00023538,2]
[421589668,1777938655000,-575.49,0.00023538,2]
[421589672,1777938655000,-239.43,0.00023538,2]
[421589667,1777938655000,-392.26,0.00023538,2]
[421589669,1777938655000,-639.3,0.00023538,2]
[421589647,1777938655000,-571.26,0.00023465,2]
[421589656,1777938655000,-182.39275942,0.00023521,2]
[421589642,1777938655000,-569.01,0.0002345,2]
[421589631,1777938655000,-571.19,0.0002345,2]
[421589641,1777938655000,-571.21,0.0002345,2]
[421589625,1777938655000,-571.26,0.00023447,2]
[421589615,1777938655000,-150.0,0.0002322,2]
[421589671,1777938655000,-393.19,0.00023538,2]
[421589617,1777938655000,-150.0,0.00023298,2]
[421589618,1777938655000,-150.0,0.00023298,2]
[421589619,1777938655000,-150.0,0.00023298,2]
[421589623,1777938655000,-569.01,0.00023447,2]
[421589620,1777938655000,-238.0,0.00023298,2]
[421589621,1777938655000,-191.9,0.00023368,2]
[421589624,1777938655000,-571.19,0.00023447,2]
[421589622,1777938655000,-183.68,0.00023447,2]
[421589628,1777938655000,-569.01,0.00023447,2]
[421589626,1777938655000,-570.22,0.00023447,2]
[421589627,1777938655000,-571.19,0.00023447,2]
[421589637,1777938655000,-575.41,0.0002345,2]
[421589630,1777938655000,-183.66,0.0002345,2]
[421589632,1777938655000,-569.01,0.0002345,2]
[421589633,1777938655000,-639.22,0.0002345,2]
[421589629,1777938655000,-393.24,0.0002345,2]
[421589635,1777938655000,-639.3,0.0002345,2]
[421589634,1777938655000,-571.26,0.0002345,2]
[421589636,1777938655000,-477.79,0.0002345,2]
[421589639,1777938655000,-639.22,0.0002345,2]
[421589649,1777938655000,-478.62,0.00023465,2]
[421589648,1777938655000,-183.66,0.00023465,2]
[421589638,1777938655000,-569.01,0.0002345,2]
[421589640,1777938655000,-393.24,0.0002345,2]
[421589646,1777938655000,-575.54,0.00023465,2]
[421589670,1777938655000,-478.68,0.00023538,2]
[421589616,1777938655000,-184.0,0.0002322,2]
[421589680,1777938655000,-393.24,0.00023539,2]
[421589705,1777938655000,-183.66,0.00023558,2]
[421589709,1777938655000,-151.0,0.00023559,2]
[421589710,1777938655000,-568.94,0.00023559,2]
[421589711,1777938655000,-644.59,0.00023559,2]
[421589715,1777938655000,-478.68,0.00023559,2]
[421589716,1777938655000,-478.5,0.00023559,2]
[421589725,1777938655000,-476.07,0.00023562,2]
[421589717,1777938655000,-151.0,0.0002356,2]
[421589714,1777938655000,-639.22,0.00023559,2]
[421589720,1777938655000,-639.14,0.00023561,2]
[421589719,1777938655000,-183.66,0.00023561,2]
[421589721,1777938655000,-393.24,0.00023561,2]
[421589722,1777938655000,-636.71,0.00023561,2]
[421589723,1777938655000,-639.22,0.00023561,2]
[421589724,1777938655000,-183.68,0.00023562,2]
[421589726,1777938655000,-569.01,0.00023562,2]
[421589729,1777938655000,-151.0,0.00023563,2]
[421589728,1777938655000,-151.0,0.00023563,2]
[421589727,1777938655000,-478.33,0.00023562,2]
[421589730,1777938655000,-183.68,0.0002357,2]
[421589731,1777938655000,-200.0,0.0002357,2]
[421589733,1777938655000,-200.0,0.0002357,2]
[421589735,1777938655000,-150.0,0.0002357,2]
[421589732,1777938655000,-200.0,0.0002357,2]
[421589734,1777938655000,-240.0,0.0002357,2]
[421589736,1777938655000,-150.0,0.0002357,2]
[421589677,1777938655000,-393.24,0.00023539,2]
[421589712,1777938655000,-478.68,0.00023559,2]
[421589706,1777938655000,-639.3,0.00023558,2]
[421589718,1777938655000,-151.0,0.00023561,2]
[421589708,1777938655000,-478.62,0.00023559,2]
[421589678,1777938655000,-183.66,0.00023539,2]
[421589707,1777938655000,-478.62,0.00023559,2]
[421589676,1777938655000,-477.2,0.00023539,2]
[421589682,1777938655000,-150.0,0.0002354,2]
[421589679,1777938655000,-393.24,0.00023539,2]
[421589681,1777938655000,-639.22,0.00023539,2]
[421589685,1777938655000,-182.99,0.00023544,2]